bitfinex/quotes_ETHUSD_20251120
["timestamp","ask_amount","ask_price","bid_price","bid_amount"]
[1763671578680,0.4756,2842.2,2840.5,0.888504]
[1763671578884,0.4756,2842.2,2840.0,0.1648]
[1763671579084,0.55248144,2841.8,2840.1,0.483]
[1763671579383,0.55248144,2841.8,2840.2,0.405504]
[1763671579599,0.6742,2841.7,2840.2,1.31249664]
[1763671579811,0.6742,2841.7,2840.3,0.483]
[1763671580009,0.4756,2841.6,2840.3,0.483]
[1763671580203,0.4756,2841.6,2840.1,0.001]
[1763671580604,0.4756,2841.6,2840.1,0.406504]
[1763671580983,0.4756,2841.6,2840.1,0.889504]
[1763671581187,0.4756,2841.6,2840.1,0.001]
[1763671581380,0.405504,2841.5,2840.1,0.001]
[1763671581784,0.4756,2841.4,2840.1,0.001]
[1763671585524,0.4756,2841.4,2840.1,0.484]
[1763671587123,0.4756,2841.4,2840.2,0.405504]
[1763671587629,0.4756,2841.4,2840.3,0.483]
[1763671587997,0.4756,2841.4,2840.1,0.001]
[1763671588894,0.4756,2841.4,2840.2,0.483]
[1763671589420,0.55253923,2841.2,2840.2,0.483]
[1763671589851,0.4756,2841.4,2840.2,0.483]
[1763671590831,0.4556,2841.4,2840.2,1.38999264]
[1763671591233,0.6542,2841.7,2840.3,0.4835]
[1763671591448,0.6542,2841.7,2840.4,0.405504]
[1763671591753,0.4556,2841.6,2840.1,0.001]
[1763671592728,0.55257864,2841.3,2840.1,0.001]
[1763671592932,0.6769,2840.2,2840.1,0.001]
[1763671593417,1.1325,2840.2,2840.1,0.001]
[1763671594621,0.6769,2840.2,2840.1,0.001]
[1763671594817,0.1901,2840.7,2840.1,0.001]
[1763671595062,0.4868,2840.2,2840.1,0.001]
[1763671595274,0.4868,2840.2,2839.9,0.001]
[1763671595564,0.1901,2840.7,2839.9,0.001]
[1763671595565,0.3429,2840.0,2839.9,0.001]
[1763671595924,0.7985,2840.0,2839.9,0.001]
[1763671598428,4.72220064,2840.0,2839.9,0.001]
[1763671598651,5.1944207,2840.0,2839.9,0.001]
[1763671598855,1.77899664,2839.9,2839.6,0.001]
[1763671599035,5.88415264,2839.7,2839.6,0.001]
[1763671599421,3.41814,2839.5,2837.3,0.18418142]
[1763671599688,0.3147,2838.2,2837.3,0.18418142]
[1763671599875,0.3147,2838.2,2837.3,0.63918142]
[1763671599876,0.196,2838.1,2837.3,0.63918142]
[1763671600043,0.196,2838.3,2837.3,0.63918142]
[1763671600237,0.196,2838.3,2837.2,0.1678]
[1763671600450,0.6926,2838.3,2837.2,0.1678]
[1763671600651,0.196,2838.7,2837.3,0.455]
[1763671600852,0.6926,2839.9,2838.2,0.6378]
[1763671601132,0.4966,2840.3,2838.7,0.405504]
[1763671601356,0.4966,2840.3,2838.9,0.405504]
[1763671601554,0.4966,2840.3,2838.2,0.1648]
[1763671601764,0.405504,2840.2,2838.3,0.405504]
[1763671601953,0.90699264,2840.1,2838.3,0.405504]
[1763671602161,0.4966,2840.1,2838.4,0.455]
[1763671602363,0.4966,2840.0,2838.4,0.455]
[1763671602529,0.4966,2840.0,2838.5,0.405504]
[1763671602732,0.196,2839.9,2838.5,0.405504]
[1763671602942,0.196,2839.9,2838.6,0.455]
[1763671603145,0.196,2839.9,2838.7,0.44073139]
[1763671603476,0.4966,2840.3,2838.9,0.405504]
[1763671603647,0.4966,2840.3,2839.0,0.455]
[1763671604175,0.4966,2840.3,2839.1,0.1668]
[1763671605261,0.4966,2840.3,2839.1,0.6218]
[1763671605674,0.4966,2840.3,2839.2,0.455]
[1763671605971,0.6867,2840.7,2839.2,0.455]
[1763671606282,0.6867,2840.7,2839.3,0.405504]
[1763671606486,0.4966,2840.6,2839.3,0.405504]
[1763671606694,0.4966,2840.6,2839.3,0.455]
[1763671607742,0.1901,2840.7,2839.4,0.405504]
[1763671608143,0.1901,2840.7,2839.6,0.405504]
[1763671608410,0.1901,2840.7,2839.7,0.455]
[1763671608777,0.55264545,2840.5,2839.7,0.455]
[1763671609072,0.55264545,2840.5,2839.8,0.405504]
[1763671609282,0.55264545,2840.5,2840.4,0.473]
[1763671609646,0.55264545,2840.5,2840.4,0.928]
[1763671610590,0.55264545,2840.5,2840.4,0.473]
[1763671612685,0.55264545,2840.5,2840.4,0.928]
[1763671613554,0.55264545,2840.5,2840.4,0.473]
[1763671613965,0.55264545,2840.5,2839.5,0.455]
[1763671614803,0.55264545,2840.5,2839.6,0.405504]
[1763671615176,0.55264545,2840.5,2839.1,0.1668]
[1763671615177,0.55264545,2840.5,2839.7,0.455]
[1763671616197,0.55464545,2840.5,2839.7,0.455]
[1763671616906,0.002,2840.5,2839.7,0.455]
[1763671620403,0.55262881,2840.4,2839.7,0.455]
[1763671620815,0.55262881,2840.4,2840.3,0.473]
[1763671621817,0.002,2840.5,2840.3,0.473]
[1763671622206,0.002,2840.5,2840.4,0.928]
[1763671622395,0.002,2840.5,2840.4,0.473]
[1763671622917,0.002,2840.5,2839.6,0.455]
[1763671622918,0.9651,2840.5,2839.6,0.455]
[1763671623118,0.002,2840.5,2839.7,0.455]
[1763671623825,0.4986,2840.5,2839.5,0.001]
[1763671624121,0.196,2839.8,2839.5,0.001]
[1763671624523,0.4665,2839.6,2839.5,0.001]
[1763671625020,0.9631,2839.6,2839.5,0.001]
[1763671627025,0.4966,2840.3,2839.5,0.474]
[1763671627234,0.4966,2840.3,2839.7,0.473]
[1763671627440,0.4966,2840.3,2839.5,0.001]
[1763671629738,0.4966,2840.3,2839.6,3.82]
[1763671630755,0.002,2840.5,2839.6,4.3081]
[1763671631043,0.4694,2840.5,2839.7,3.82]
[1763671631342,0.002,2840.5,2839.7,10.6581]
[1763671631523,0.4694,2840.5,2839.8,0.90699264]
[1763671632457,0.4694,2840.5,2839.7,10.17]
[1763671633610,0.002,2840.5,2839.7,10.17]
[1763671633832,0.002,2840.5,2839.8,0.4881]
[1763671634024,0.002,2840.5,2840.4,0.4839]
[1763671634233,0.002,2840.5,2840.4,4.3039]
[1763671634845,0.002,2841.1,2840.7,3.818]
[1763671635234,0.002,2841.1,2840.5,3.818]
[1763671635562,0.1957,2840.9,2840.6,3.818]
[1763671636262,0.55458553,2841.1,2840.6,3.818]
[1763671636761,0.55458553,2841.1,2840.7,0.4839]
[1763671637057,0.55458553,2841.1,2840.7,0.972]
[1763671637470,0.55458553,2841.1,2840.7,12.75972737]
[1763671637922,0.55458553,2841.1,2840.7,5.69699264]
[1763671638439,0.55458553,2841.1,2840.7,3.818]
[1763671639158,0.465,2840.8,2840.7,3.818]
[1763671639661,0.9324,2840.8,2840.7,3.818]
[1763671640065,0.9324,2840.8,2840.1,3.818]
[1763671640238,0.3335,2840.5,2840.1,3.818]
[1763671640625,0.002,2840.8,2840.1,3.818]
[1763671641626,0.4694,2840.8,2839.9,3.818]
[1763671641830,0.5525343,2840.1,2840.0,0.52331126]
[1763671642034,0.5525343,2840.1,2840.0,0.4881]
[1763671642236,0.5525343,2840.1,2840.0,0.972]
[1763671642650,0.5525343,2840.1,2840.0,0.4839]
[1763671642870,0.5525343,2840.1,2840.0,0.972]
[1763671643042,1.0155343,2840.1,2839.5,0.001]
[1763671643946,0.5525343,2840.1,2839.5,0.001]
[1763671644143,0.4674,2840.0,2839.5,0.001]
[1763671644632,0.1957,2839.9,2839.5,0.001]
[1763671645262,0.6631,2839.9,2839.5,0.001]
[1763671645639,0.4674,2839.8,2839.5,0.001]
[1763671645840,0.463,2839.6,2839.5,0.001]
[1763671646367,0.9304,2839.6,2839.5,0.001]
[1763671646575,0.1957,2839.9,2839.5,0.001]
[1763671646772,0.4674,2839.8,2839.5,0.001]
[1763671647082,0.463,2839.6,2839.5,0.001]
[1763671647242,0.1957,2839.9,2839.5,0.001]
[1763671647445,0.6631,2839.9,2839.5,0.001]
[1763671648272,0.463,2839.6,2839.5,3.819]
[1763671648455,0.4674,2839.8,2839.5,3.819]
[1763671648758,0.1957,2839.9,2839.5,3.819]
[1763671648964,0.6631,2839.9,2839.5,3.819]
[1763671649359,0.1957,2839.9,2839.5,3.819]
[1763671649560,0.1957,2840.0,2839.5,3.819]
[1763671650269,0.6631,2840.0,2839.5,3.819]
[1763671650466,0.6631,2840.0,2839.5,0.001]
[1763671650673,0.1957,2840.0,2839.5,0.001]
[1763671650846,0.4541,2839.6,2839.5,0.001]
[1763671652561,0.4844,2839.9,2839.5,0.001]
[1763671653644,0.4541,2839.6,2839.5,0.001]
[1763671653867,0.9385,2839.6,2839.5,0.001]
[1763671655937,0.9385,2839.6,2839.2,0.001]
[1763671655938,0.405504,2839.5,2839.2,0.001]
[1763671656161,0.3409,2839.3,2839.2,0.001]
[1763671656570,0.8253,2839.3,2839.2,0.001]
[1763671657448,0.8253,2839.3,2838.1,0.08371151]
[1763671657662,0.4541,2839.0,2838.1,0.08371151]
[1763671657859,0.90699264,2839.7,2838.1,0.08371151]
[1763671657860,0.90699264,2839.7,2839.6,0.1668]
[1763671658073,0.002,2841.1,2839.7,3.712]
[1763671658395,0.002,2841.1,2840.4,1.31249664]
[1763671658540,0.002,2841.1,2840.6,0.405504]
[1763671659053,0.002,2841.1,2841.0,8.37523137]
[1763671659578,0.002,2842.3,2841.2,0.405504]
[1763671659762,0.002,2842.3,2841.8,1.85159225]
[1763671660878,0.002,2842.3,2841.9,0.94459961]
[1763671661175,0.002,2842.3,2841.8,1.85159225]
[1763671661581,0.002,2842.3,2841.9,1.35010361]
[1763671661760,0.002,2842.3,2841.9,0.405504]
[1763671661947,0.002,2842.3,2841.9,7.46823873]
[1763671662472,0.002,2842.3,2841.9,8.40986364]
[1763671663480,0.002,2842.3,2841.9,7.46823873]
[1763671665579,0.002,2842.3,2841.9,6.99879292]
[1763671666176,0.002,2842.3,2841.9,7.90578556]
[1763671666382,0.4542,2843.5,2842.0,0.90699264]
[1763671666583,0.4542,2843.5,2842.5,7.96972737]
[1763671666975,0.9529,2842.6,2841.7,0.93848343]
[1763671667170,0.9529,2842.6,2841.7,0.90699264]
[1763671667508,0.9529,2842.6,2842.1,0.90699264]
[1763671667509,0.002,2842.6,2842.1,0.90699264]
[1763671668017,0.002,2842.6,2842.5,1.31249664]
[1763671670372,0.002,2842.6,2842.5,0.90699264]
[1763671671572,0.002,2842.6,2842.5,1.31249664]
[1763671675220,0.002,2842.6,2842.5,1.34767693]
[1763671675401,0.002,2842.6,2842.5,1.31249664]
[1763671675576,0.002,2842.9,2842.6,0.405504]
[1763671675918,0.002,2842.9,2842.8,8.37523137]
[1763671676412,0.002,2842.9,2842.8,0.90699264]
[1763671676571,0.002,2842.9,2842.8,7.96972737]
[1763671676775,0.002,2842.9,2842.8,8.37523137]
[1763671680410,0.4542,2843.5,2843.1,0.90699264]
[1763671680627,0.4542,2843.5,2843.2,3.818]
[1763671680983,0.4967,2843.3,2843.2,3.818]
[1763671681421,0.4542,2843.7,2843.2,3.818]
[1763671681591,0.4042,2843.7,2843.3,10.168]
[1763671681990,0.4042,2843.7,2843.4,3.818]
[1763671682191,0.4042,2843.7,2843.5,3.818]
[1763671682629,0.4967,2843.6,2843.5,3.818]
[1763671683114,0.1804,2844.0,2843.5,3.818]
[1763671683315,0.002,2845.4,2843.9,0.0501]
[1763671683554,0.002,2845.4,2844.1,7.06273473]
[1763671683726,0.4542,2845.0,2843.6,0.90699264]
[1763671683921,0.1829,2843.9,2843.6,0.90699264]
[1763671684285,0.4542,2844.2,2843.6,0.90699264]
[1763671684939,0.002,2845.4,2843.6,0.90699264]
[1763671685233,0.4542,2844.6,2844.0,0.90699264]
[1763671685988,0.6371,2845.2,2844.3,7.06273473]
[1763671686218,0.4542,2845.0,2844.3,7.06273473]
[1763671686419,0.4542,2845.0,2844.4,1.84547607]
[1763671686618,0.1829,2845.2,2844.7,0.93848343]
[1763671687024,0.4542,2845.0,2844.6,0.93848343]
[1763671687227,0.4967,2844.8,2844.5,0.93848343]
[1763671687427,0.4542,2845.0,2844.5,0.93848343]
[1763671687428,0.4542,2845.0,2844.7,1.25946615]
[1763671687628,0.4542,2844.9,2844.8,0.944162]
[1763671687924,0.6371,2845.2,2844.8,1.25946615]
[1763671688123,0.6391,2845.1,2844.9,0.94408802]
[1763671688303,0.6391,2845.1,2844.8,0.94408802]
[1763671688304,0.4967,2845.0,2844.8,0.94408802]
[1763671688499,0.4967,2845.0,2844.9,0.94408802]
[1763671688710,0.9755,2845.0,2844.8,0.94408802]
[1763671688905,0.9755,2845.0,2844.9,0.94408802]
[1763671690129,0.4967,2845.0,2844.9,0.94408802]
[1763671690425,0.1849,2845.1,2844.8,0.90699264]
[1763671690426,0.002,2845.1,2844.8,0.90699264]
[1763671690632,0.002,2845.1,2845.0,1.25761624]
[1763671690831,0.002,2845.1,2844.9,1.25761624]
[1763671690995,0.4808,2845.1,2844.9,0.94344889]
[1763671691196,0.4978,2845.0,2844.9,0.94344889]
[1763671691727,0.9766,2845.0,2844.8,0.94344889]
[1763671691895,0.1882,2844.9,2844.8,0.94344889]
[1763671692101,1.1648,2844.9,2844.8,0.94344889]
[1763671693031,1.1648,2844.9,2844.6,0.94344889]
[1763671693214,0.4978,2844.7,2844.4,0.94344889]
[1763671693416,0.4788,2844.8,2844.4,0.94344889]
[1763671693620,0.4788,2844.8,2844.5,0.94344889]
[1763671694147,0.1882,2844.9,2844.5,0.94344889]
[1763671694294,0.667,2844.9,2844.5,0.94344889]
[1763671694798,0.667,2844.9,2844.6,0.94344889]
[1763671694999,0.1882,2844.9,2844.6,0.94344889]
[1763671695224,0.4788,2844.8,2844.6,0.94344889]
[1763671695630,0.4788,2844.8,2844.7,3.818]
[1763671696027,0.9766,2844.8,2844.7,3.818]
[1763671697343,0.1882,2844.9,2844.7,3.818]
[1763671697546,0.4978,2844.8,2844.7,3.818]
[1763671698054,0.9766,2844.8,2844.7,3.818]
[1763671698861,0.9766,2844.8,2844.7,3.318]
[1763671700651,0.9766,2844.8,2844.1,4.26144889]
[1763671700952,0.2784,2844.3,2844.2,3.318]
[1763671701110,0.4788,2844.7,2844.2,3.318]
[1763671701309,0.4978,2844.3,2844.2,3.318]
[1763671701539,0.4788,2844.6,2844.2,4.26144889]
[1763671701809,0.4788,2844.6,2844.3,0.94344889]
[1763671702966,0.4978,2844.4,2844.3,0.94344889]
[1763671703311,0.9766,2844.4,2844.2,4.26144889]
[1763671703507,0.4978,2844.3,2844.2,4.26144889]
[1763671703743,0.9766,2844.3,2844.2,4.26144889]
[1763671704525,0.9766,2844.3,2844.2,3.318]
[1763671704722,0.9766,2844.3,2844.2,4.26368704]
[1763671705728,0.9766,2844.3,2844.2,3.318]
[1763671707059,0.9766,2844.3,2844.2,4.26368704]
[1763671707259,0.9766,2844.3,2844.2,3.318]
[1763671710267,0.95726105,2844.3,2844.2,3.318]
[1763671710416,0.47846105,2844.3,2844.2,3.318]
[1763671710619,0.456,2844.6,2844.2,3.318]
[1763671711130,0.002,2844.8,2844.3,0.03515803]
[1763671711320,0.002,2844.8,2844.3,1.25761624]
[1763671712243,0.456,2844.7,2844.4,1.25761624]
[1763671712421,0.456,2844.7,2844.3,1.25761624]
[1763671712850,0.4797,2844.4,2844.3,1.25761624]
[1763671713166,0.4797,2844.4,2844.2,4.57561624]
[1763671713344,0.2997,2844.3,2844.2,4.57561624]
[1763671714420,0.2997,2844.3,2844.2,3.318]
[1763671714624,0.458,2844.8,2844.2,4.57561624]
[1763671715372,0.458,2844.8,2844.2,1.25761624]
[1763671715575,0.458,2844.8,2844.5,1.25761624]
[1763671715576,0.002,2844.8,2844.5,1.25761624]
[1763671718774,0.002,2844.8,2844.7,0.4527]
[1763671718950,0.002,2844.8,2844.7,1.71031624]
[1763671719152,0.002,2844.8,2844.7,2.17281624]
[1763671719577,0.002,2844.8,2844.7,1.71031624]
[1763671719969,0.9246,2844.8,2844.6,1.25761624]
[1763671720190,0.4621,2844.8,2844.1,1.43881624]
[1763671720488,0.4601,2844.7,2844.1,1.25761624]
[1763671720694,0.4601,2844.7,2843.9,1.88919922]
[1763671721745,0.4601,2844.7,2843.9,2.35169922]
[1763671721947,0.002,2844.8,2843.9,1.88919922]
[1763671722259,0.4621,2844.8,2844.0,1.88919922]
[1763671722461,0.4621,2844.8,2844.1,0.1812]
[1763671723075,0.4621,2844.8,2843.9,1.89019922]
[1763671723667,0.4621,2844.8,2843.9,2.35269922]
[1763671724751,0.4621,2844.8,2843.9,1.89019922]
[1763671724961,0.4625,2844.0,2843.9,0.001]
[1763671725391,0.4601,2844.4,2843.9,0.001]
[1763671726381,0.4601,2844.3,2844.1,0.90699264]
[1763671726583,0.4601,2844.3,2844.0,9.668]
[1763671727156,0.4601,2844.6,2844.0,9.668]
[1763671727466,0.002,2844.8,2844.1,9.8492]
[1763671728161,0.002,2844.8,2844.2,3.318]
[1763671728358,0.002,2844.8,2844.4,0.90699264]
[1763671728634,0.002,2844.8,2844.5,3.318]
[1763671728890,0.002,2844.8,2844.7,0.4527]
[1763671729261,0.002,2844.8,2844.7,0.9152]
[1763671730102,0.002,2844.8,2844.7,0.4527]
[1763671730869,0.002,2844.8,2844.5,1.88919922]
[1763671731069,0.002,2844.8,2844.7,0.4527]
[1763671731305,0.002,2844.8,2844.6,0.90699264]
[1763671731604,0.002,2844.8,2844.7,0.4527]
[1763671731901,0.002,2844.8,2844.7,2.80439922]
[1763671733097,0.002,2844.8,2844.7,2.34189922]
[1763671734312,0.002,2844.8,2844.7,0.4527]
[1763671735799,0.002,2844.8,2844.7,1.82219264]
[1763671736878,0.002,2844.8,2844.7,4.11689586]
[1763671737096,0.002,2844.8,2844.7,2.22769664]
[1763671740012,0.002,2844.8,2844.7,3.25250005]
[1763671740211,0.45851717,2845.4,2844.7,1.35969264]
[1763671740443,0.002,2845.5,2844.9,1.89358113]
[1763671740663,0.002,2845.5,2844.7,0.4527]
[1763671740664,0.002,2845.5,2844.7,1.89358113]
[1763671740955,0.002,2845.5,2844.4,1.89358113]
[1763671741114,0.002,2845.5,2844.5,2.35608113]
[1763671741526,0.002,2845.5,2844.5,1.89358113]
[1763671741907,0.002,2845.5,2844.5,2.35608113]
[1763671742110,0.002,2845.5,2844.9,0.90699264]
[1763671742417,0.002,2845.5,2845.0,1.89358113]
[1763671742623,0.002,2845.5,2844.9,2.80057377]
[1763671743157,0.002,2845.5,2845.0,2.35608113]
[1763671743336,0.002,2845.5,2845.1,1.89358113]
[1763671743536,0.002,2845.5,2845.2,3.318]
[1763671745344,0.4625,2845.3,2845.2,3.318]
[1763671745771,0.9226,2845.3,2845.2,3.318]
[1763671747715,0.4625,2845.3,2845.2,3.318]
[1763671748331,0.002,2845.5,2845.2,3.318]
[1763671748647,0.4867,2845.3,2845.2,3.318]
[1763671748815,0.4867,2845.3,2845.1,6.35]
[1763671749459,0.2463,2845.2,2845.1,6.35]
[1763671749924,0.7292,2845.2,2845.1,6.35]
[1763671751647,0.7292,2845.2,2844.6,3.82]
[1763671751836,0.002,2845.5,2844.6,3.82]
[1763671751837,0.6746,2845.1,2844.6,3.82]
[1763671752033,0.4867,2844.7,2844.6,3.82]
[1763671752434,0.9696,2844.7,2844.6,3.82]
[1763671755340,0.9696,2844.7,2844.3,0.001]
[1763671755565,0.4829,2844.6,2844.3,0.001]
[1763671755875,0.2456,2844.4,2844.3,0.001]
[1763671756390,0.7285,2844.4,2844.3,0.001]
[1763671756542,0.2456,2844.4,2844.3,0.001]
[1763671757650,0.7285,2844.4,2844.3,0.001]
[1763671757972,0.2456,2844.4,2844.3,0.001]
[1763671758876,0.4829,2844.7,2844.3,0.001]
[1763671760794,0.32906925,2845.0,2844.3,0.001]
[1763671760940,0.4867,2844.4,2844.3,0.001]
[1763671761769,0.4829,2844.6,2844.3,0.001]
[1763671762372,0.4867,2844.4,2844.3,0.001]
[1763671762579,0.1917,2845.1,2844.3,0.001]
[1763671762873,0.4829,2845.0,2844.3,0.001]
[1763671763073,0.81186403,2845.0,2844.3,0.001]
[1763671763476,0.4867,2844.4,2844.3,0.001]
[1763671764579,0.9696,2844.4,2844.3,0.001]
[1763671765367,0.9696,2844.4,2844.3,3.821]
[1763671767394,0.4829,2844.8,2844.3,3.821]
[1763671768483,0.4867,2844.4,2844.3,3.821]
[1763671768853,0.6746,2845.1,2844.3,4.7878]
[1763671769095,0.6746,2845.1,2844.4,0.03515679]
[1763671769252,0.6746,2845.1,2844.3,4.3088]
[1763671769986,0.1917,2845.1,2844.4,3.82]
[1763671770151,0.002,2845.4,2844.4,4.3146]
[1763671770152,0.4696,2845.4,2844.4,4.3146]
[1763671770348,0.4696,2845.4,2844.5,10.17]
[1763671770573,0.4696,2845.4,2844.5,10.6646]
[1763671774196,0.002,2845.4,2845.3,0.4804]
[1763671774375,0.002,2845.4,2845.3,4.4808]
[1763671774579,0.002,2845.4,2845.3,4.9754]
[1763671774962,0.002,2845.4,2845.3,4.4808]
[1763671775164,0.002,2845.4,2845.3,3.82]
[1763671775890,0.002,2845.4,2845.3,4.3004]
[1763671777058,0.002,2845.4,2845.3,3.82]
[1763671779197,0.002,2845.4,2845.0,7.025]
[1763671779198,0.9834,2845.4,2844.6,3.82]
[1763671779494,0.9834,2845.4,2844.4,1.89358113]
[1763671779495,0.2271,2845.1,2844.7,3.82]
[1763671780395,0.7088,2845.1,2844.7,3.82]
[1763671781076,0.4997,2844.8,2844.7,3.82]
[1763671781393,0.002,2845.4,2844.5,0.90699264]
[1763671782982,0.002,2845.4,2844.5,1.36909264]
[1763671783166,0.002,2845.4,2844.5,0.90699264]
[1763671783691,0.002,2845.4,2844.4,9.1912]
[1763671784373,0.002,2845.4,2844.5,9.1912]
[1763671784597,0.33155292,2845.4,2844.5,9.1912]
[1763671784964,0.33155292,2845.4,2844.6,2.8412]
[1763671785161,0.32955292,2845.3,2844.6,2.8412]
[1763671785786,0.32955292,2845.2,2844.6,2.8412]
[1763671785986,0.33355292,2845.4,2844.6,2.8412]
[1763671785987,0.32955292,2845.3,2844.6,2.8412]
[1763671786298,0.32955292,2845.2,2844.6,2.8412]
[1763671786498,0.33355292,2845.4,2844.6,2.8412]
[1763671786499,0.32955292,2845.3,2844.6,2.8412]
[1763671788202,0.32955292,2845.3,2844.7,2.8412]
[1763671788398,0.002,2845.4,2844.8,0.03515185]
[1763671788720,0.002,2845.4,2844.8,0.49725185]
[1763671788902,0.002,2845.4,2844.9,9.1912]
[1763671789205,0.002,2845.4,2845.3,0.4642]
[1763671789405,0.002,2845.4,2845.3,3.501]
[1763671789898,0.002,2845.4,2845.3,3.9631]
[1763671790607,0.002,2845.4,2845.3,1.1219]
[1763671791502,0.002,2845.4,2845.3,0.6598]
[1763671791807,0.002,2845.4,2845.3,0.4642]
[1763671792494,0.002,2845.4,2845.1,0.1956]
[1763671792694,0.002,2845.4,2844.8,2.99717377]
[1763671792695,0.4395,2845.4,2844.8,2.99717377]
[1763671792893,0.4395,2845.4,2844.8,1.10359264]
[1763671793295,0.002,2845.4,2845.3,0.4642]
[1763671793486,0.002,2845.4,2844.9,0.4621]
[1763671793688,0.002,2845.4,2845.0,0.4621]
[1763671794778,0.002,2845.4,2845.3,0.4642]
[1763671795180,0.002,2845.4,2845.3,0.9263]
[1763671795600,0.002,2845.4,2844.9,0.4621]
[1763671796294,0.002,2845.4,2845.3,0.4642]
[1763671796890,0.002,2845.4,2845.3,0.9263]
[1763671798707,0.002,2845.4,2845.3,0.4642]
[1763671798910,0.002,2845.4,2845.1,0.4621]
[1763671799314,0.002,2845.4,2844.8,3.45927377]
[1763671799513,0.002,2845.4,2844.8,2.99717377]
[1763671799694,0.002,2845.4,2844.9,0.4621]
[1763671800300,0.32913312,2846.3,2845.8,0.4642]
[1763671800634,0.01013548,2850.0,2847.4,0.4642]
[1763671800635,0.14079772,2848.2,2847.4,0.4642]
[1763671800842,0.14079772,2848.2,2847.7,1.37119264]
[1763671800989,0.6752,2849.4,2848.2,0.90699264]
[1763671801196,0.6752,2849.4,2848.8,0.94117656]
[1763671801390,0.07163548,2850.0,2849.3,0.6598]
[1763671801591,0.01013548,2850.0,2849.3,0.6598]
[1763671801819,0.01013548,2850.0,2849.5,0.90699264]
[1763671802005,0.01013548,2850.0,2849.8,7.03837422]
[1763671802205,0.01013548,2850.0,2849.9,1.83329264]
[1763671802692,0.6752,2851.8,2850.5,7.03837422]
[1763671802889,0.6752,2851.8,2850.9,7.03837422]
[1763671803303,0.6752,2851.8,2851.0,0.1956]
[1763671803505,0.6752,2852.2,2851.3,7.03837422]
[1763671803772,0.6752,2852.2,2851.0,0.1956]
[1763671803928,0.4817,2852.1,2850.6,0.1956]
[1763671804115,0.4817,2852.1,2850.7,7.90597822]
[1763671804306,0.1935,2852.6,2851.3,0.90699264]
[1763671804505,0.1935,2852.6,2850.9,0.405504]
[1763671804506,0.4817,2852.5,2851.6,7.03837422]
[1763671804902,0.4817,2852.5,2850.7,0.4621]
[1763671805110,0.4817,2852.5,2850.5,0.1956]
[1763671805111,0.1935,2851.7,2850.5,0.1956]
[1763671805342,0.4817,2851.6,2850.3,0.90699264]
[1763671805748,0.1935,2851.7,2850.7,7.03837422]
[1763671805902,0.1935,2851.7,2850.8,0.90699264]
[1763671806108,0.1935,2851.7,2850.8,1.36909264]
[1763671806547,0.1935,2851.9,2851.2,0.90699264]
[1763671806706,0.4817,2852.3,2851.2,0.90699264]
[1763671806902,0.4817,2852.3,2851.2,1.36909264]
[1763671807239,0.1935,2852.6,2850.9,0.405504]
[1763671807240,0.6752,2852.6,2851.5,7.03837422]
[1763671807443,0.1935,2853.0,2852.0,0.405504]
[1763671807653,0.1935,2853.0,2852.3,7.03837422]
[1763671807812,0.1935,2854.0,2852.8,0.90699264]
[1763671808018,0.17924157,2855.4,2853.8,7.03837422]
[1763671808019,0.4817,2854.9,2853.8,7.03837422]
[1763671808227,0.4817,2854.9,2853.9,0.90699264]
[1763671808412,0.4552,2855.2,2854.2,7.03837422]
[1763671808617,0.17924157,2855.4,2853.7,0.4817]
[1763671808618,0.4552,2855.0,2853.7,0.4817]
[1763671808839,0.4552,2855.0,2853.9,7.03837422]
[1763671809011,0.1935,2856.0,2854.0,1.31249664]
[1763671809210,0.4552,2855.5,2854.4,7.03837422]
[1763671809637,0.1935,2856.0,2854.1,7.23017422]
[1763671809948,0.1935,2856.0,2853.2,0.47899147]
[1763671809949,0.405504,2854.4,2852.7,0.1918]
[1763671810249,0.1891,2854.5,2853.2,7.03837422]
[1763671810250,0.002,2853.3,2853.2,7.03837422]
[1763671810656,0.002,2853.3,2853.2,7.92937822]
[1763671810841,0.1891,2854.8,2853.7,6.10386602]
[1763671811156,0.1891,2854.8,2853.3,1.31249664]
[1763671811318,0.1891,2854.8,2853.2,0.4855]
[1763671811319,0.4552,2854.7,2853.2,0.4855]
[1763671811652,0.4552,2854.7,2853.3,1.79799664]
[1763671812015,0.1891,2854.8,2853.5,0.405504]
[1763671812215,0.1891,2854.8,2853.7,0.405504]
[1763671812412,0.6443,2854.8,2853.7,0.405504]
[1763671812619,0.1891,2854.8,2853.8,0.4855]
[1763671813115,0.6443,2854.8,2853.8,0.4855]
[1763671813316,0.6443,2854.8,2853.4,0.405504]
[1763671813516,0.6443,2854.8,2853.4,0.891004]
[1763671813954,0.6443,2854.8,2853.6,0.405504]
[1763671814448,0.1891,2854.8,2853.8,0.405504]
[1763671814653,0.1891,2854.8,2851.4,0.93088088]
[1763671814654,0.1891,2853.9,2853.1,0.6615]
[1763671815051,0.4552,2854.3,2853.1,0.6615]
[1763671815252,0.1891,2854.8,2853.2,6.58936602]
[1763671815578,0.6443,2854.8,2853.3,0.90699264]
[1763671815945,0.4552,2854.7,2853.1,0.176]
[1763671816940,0.4552,2854.7,2852.4,1.0535243]
[1763671816941,0.1891,2853.2,2852.4,1.0535243]